{"text_format":"3","workbook":"xlsx","n_sheets":2,"sheets":["Monthly planner","Lists"],"not_rendered":{"images":1,"defined_names":9},"read":"whole","date_system":"1900"}

{"sheet":"Monthly planner","index":0,"n_rows":40,"n_cols":31,"rows_kept":40,"merged":[[1,2,1,6],[3,2,3,3],[3,5,3,6],[3,8,3,9],[3,11,3,12],[3,14,3,15],[3,17,3,18],[3,20,3,21],[3,24,3,30],[4,2,4,3],[4,5,4,6],[4,8,4,9],[4,11,4,12],[4,14,4,15],[4,17,4,18],[4,20,4,21],[4,24,4,30],[5,24,5,30],[6,24,6,30],[7,24,7,30],[8,24,8,30],[9,24,9,30],[10,2,10,3],[10,5,10,6],[10,8,10,9],[10,11,10,12],[10,14,10,15],[10,17,10,18],[10,20,10,21],[10,24,10,30],[11,24,11,30],[12,24,12,30],[13,24,13,30],[14,24,14,30],[15,24,15,30],[16,2,16,3],[16,5,16,6],[16,8,16,9],[16,11,16,12],[16,14,16,15],[16,17,16,18],[16,20,16,21],[16,24,16,30],[17,24,17,30],[18,24,18,30],[19,24,19,30],[20,24,20,30],[21,24,21,30],[22,2,22,3],[22,5,22,6],[22,8,22,9],[22,11,22,12],[22,14,22,15],[22,17,22,18],[22,20,22,21],[23,24,23,30],[28,2,28,3],[28,5,28,6],[28,8,28,9],[28,11,28,12],[28,14,28,15],[28,17,28,18],[28,20,28,21],[32,24,32,30],[34,2,34,3],[34,5,34,6],[34,8,34,9],[34,11,34,12],[34,14,34,15],[34,17,34,18],[34,20,34,21]]}
[{"$nulls":30}," "]
[null,null,"January 2022"]
[]
[null,null,"Sunday",null,null,"Monday",null,null,"Tuesday",null,null,"Wednesday",null,null,"Thursday",null,null,"Friday",null,null,"Saturday",{"$nulls":3},"Goals and priorities"]
[null,null,{"$f":"IF(MONTH(ThisMonth_WeekStart+1)<>MONTH(ThisMonth),\"\",ThisMonth_WeekStart+1)","v":""},null,null,{"$f":"IF(MONTH(ThisMonth_WeekStart+2)<>MONTH(ThisMonth),\"\",ThisMonth_WeekStart+2)","v":""},null,null,{"$f":"IF(MONTH(ThisMonth_WeekStart+3)<>MONTH(ThisMonth),\"\",ThisMonth_WeekStart+3)","v":""},null,null,{"$f":"IF(MONTH(ThisMonth_WeekStart+4)<>MONTH(ThisMonth),\"\",ThisMonth_WeekStart+4)","v":""},null,null,{"$f":"IF(MONTH(ThisMonth_WeekStart+5)<>MONTH(ThisMonth),\"\",ThisMonth_WeekStart+5)","v":""},null,null,{"$f":"IF(MONTH(ThisMonth_WeekStart+6)<>MONTH(ThisMonth),\"\",ThisMonth_WeekStart+6)","v":""},null,null,{"$f":"IF(MONTH(ThisMonth_WeekStart+7)<>MONTH(ThisMonth),\"\",ThisMonth_WeekStart+7)","v":"2022-01-01"}]
[{"$nulls":6},"Other"]
[]
[]
[]
[]
[null,null,{"$f":"IF(MONTH(ThisMonth_WeekStart+8)<>MONTH(ThisMonth),\"\",ThisMonth_WeekStart+8)","v":"2022-01-02"},null,null,{"$f":"IF(MONTH(ThisMonth_WeekStart+9)<>MONTH(ThisMonth),\"\",ThisMonth_WeekStart+9)","v":"2022-01-03"},null,null,{"$f":"IF(MONTH(ThisMonth_WeekStart+10)<>MONTH(ThisMonth),\"\",ThisMonth_WeekStart+10)","v":"2022-01-04"},null,null,{"$f":"IF(MONTH(ThisMonth_WeekStart+11)<>MONTH(ThisMonth),\"\",ThisMonth_WeekStart+11)","v":"2022-01-05"},null,null,{"$f":"IF(MONTH(ThisMonth_WeekStart+12)<>MONTH(ThisMonth),\"\",ThisMonth_WeekStart+12)","v":"2022-01-06"},null,null,{"$f":"IF(MONTH(ThisMonth_WeekStart+13)<>MONTH(ThisMonth),\"\",ThisMonth_WeekStart+13)","v":"2022-01-07"},null,null,{"$f":"IF(MONTH(ThisMonth_WeekStart+14)<>MONTH(ThisMonth),\"\",ThisMonth_WeekStart+14)","v":"2022-01-08"}]
[null,null,"Finish exercise routine","Personal",null,"Start my new project!","Work",{"$nulls":4},"Project progress review",null,null,"Mom's birthday","Birthday"]
[null,null,"Fix my bike",null,null,"Project meeting at 10 am",{"$nulls":5},"Call Ian",null,null,"Open investment account","Personal"]
[null,null,"Check new horror movies!",null,null,"Family dinner with April"]
[]
[]
[null,null,{"$f":"IF(MONTH(ThisMonth_WeekStart+15)<>MONTH(ThisMonth),\"\",ThisMonth_WeekStart+15)","v":"2022-01-09"},null,null,{"$f":"IF(MONTH(ThisMonth_WeekStart+16)<>MONTH(ThisMonth),\"\",ThisMonth_WeekStart+16)","v":"2022-01-10"},null,null,{"$f":"IF(MONTH(ThisMonth_WeekStart+17)<>MONTH(ThisMonth),\"\",ThisMonth_WeekStart+17)","v":"2022-01-11"},null,null,{"$f":"IF(MONTH(ThisMonth_WeekStart+18)<>MONTH(ThisMonth),\"\",ThisMonth_WeekStart+18)","v":"2022-01-12"},null,null,{"$f":"IF(MONTH(ThisMonth_WeekStart+19)<>MONTH(ThisMonth),\"\",ThisMonth_WeekStart+19)","v":"2022-01-13"},null,null,{"$f":"IF(MONTH(ThisMonth_WeekStart+20)<>MONTH(ThisMonth),\"\",ThisMonth_WeekStart+20)","v":"2022-01-14"},null,null,{"$f":"IF(MONTH(ThisMonth_WeekStart+21)<>MONTH(ThisMonth),\"\",ThisMonth_WeekStart+21)","v":"2022-01-15"}]
[]
[]
[]
[]
[]
[null,null,{"$f":"IF(MONTH(ThisMonth_WeekStart+22)<>MONTH(ThisMonth),\"\",ThisMonth_WeekStart+22)","v":"2022-01-16"},null,null,{"$f":"IF(MONTH(ThisMonth_WeekStart+23)<>MONTH(ThisMonth),\"\",ThisMonth_WeekStart+23)","v":"2022-01-17"},null,null,{"$f":"IF(MONTH(ThisMonth_WeekStart+24)<>MONTH(ThisMonth),\"\",ThisMonth_WeekStart+24)","v":"2022-01-18"},null,null,{"$f":"IF(MONTH(ThisMonth_WeekStart+25)<>MONTH(ThisMonth),\"\",ThisMonth_WeekStart+25)","v":"2022-01-19"},null,null,{"$f":"IF(MONTH(ThisMonth_WeekStart+26)<>MONTH(ThisMonth),\"\",ThisMonth_WeekStart+26)","v":"2022-01-20"},null,null,{"$f":"IF(MONTH(ThisMonth_WeekStart+27)<>MONTH(ThisMonth),\"\",ThisMonth_WeekStart+27)","v":"2022-01-21"},null,null,{"$f":"IF(MONTH(ThisMonth_WeekStart+28)<>MONTH(ThisMonth),\"\",ThisMonth_WeekStart+28)","v":"2022-01-22"}]
[{"$nulls":24},{"$f":"EDATE(ThisMonth,-1)","v":"2021-12-01"}]
[{"$nulls":24},"S","M","T","W","T","F","S"]
[{"$nulls":24},{"$f":"IF(MONTH(LastMonth_WeekStart+1)<>MONTH(LastMonth),\"\",LastMonth_WeekStart+1)","v":""},{"$f":"IF(MONTH(LastMonth_WeekStart+2)<>MONTH(LastMonth),\"\",LastMonth_WeekStart+2)","v":""},{"$f":"IF(MONTH(LastMonth_WeekStart+3)<>MONTH(LastMonth),\"\",LastMonth_WeekStart+3)","v":""},{"$f":"IF(MONTH(LastMonth_WeekStart+4)<>MONTH(LastMonth),\"\",LastMonth_WeekStart+4)","v":"2021-12-01"},{"$f":"IF(MONTH(LastMonth_WeekStart+5)<>MONTH(LastMonth),\"\",LastMonth_WeekStart+5)","v":"2021-12-02"},{"$f":"IF(MONTH(LastMonth_WeekStart+6)<>MONTH(LastMonth),\"\",LastMonth_WeekStart+6)","v":"2021-12-03"},{"$f":"IF(MONTH(LastMonth_WeekStart+7)<>MONTH(LastMonth),\"\",LastMonth_WeekStart+7)","v":"2021-12-04"}]
[{"$nulls":24},{"$f":"IF(MONTH(LastMonth_WeekStart+8)<>MONTH(LastMonth),\"\",LastMonth_WeekStart+8)","v":"2021-12-05"},{"$f":"IF(MONTH(LastMonth_WeekStart+9)<>MONTH(LastMonth),\"\",LastMonth_WeekStart+9)","v":"2021-12-06"},{"$f":"IF(MONTH(LastMonth_WeekStart+10)<>MONTH(LastMonth),\"\",LastMonth_WeekStart+10)","v":"2021-12-07"},{"$f":"IF(MONTH(LastMonth_WeekStart+11)<>MONTH(LastMonth),\"\",LastMonth_WeekStart+11)","v":"2021-12-08"},{"$f":"IF(MONTH(LastMonth_WeekStart+12)<>MONTH(LastMonth),\"\",LastMonth_WeekStart+12)","v":"2021-12-09"},{"$f":"IF(MONTH(LastMonth_WeekStart+13)<>MONTH(LastMonth),\"\",LastMonth_WeekStart+13)","v":"2021-12-10"},{"$f":"IF(MONTH(LastMonth_WeekStart+14)<>MONTH(LastMonth),\"\",LastMonth_WeekStart+14)","v":"2021-12-11"}]
[{"$nulls":24},{"$f":"IF(MONTH(LastMonth_WeekStart+15)<>MONTH(LastMonth),\"\",LastMonth_WeekStart+15)","v":"2021-12-12"},{"$f":"IF(MONTH(LastMonth_WeekStart+16)<>MONTH(LastMonth),\"\",LastMonth_WeekStart+16)","v":"2021-12-13"},{"$f":"IF(MONTH(LastMonth_WeekStart+17)<>MONTH(LastMonth),\"\",LastMonth_WeekStart+17)","v":"2021-12-14"},{"$f":"IF(MONTH(LastMonth_WeekStart+18)<>MONTH(LastMonth),\"\",LastMonth_WeekStart+18)","v":"2021-12-15"},{"$f":"IF(MONTH(LastMonth_WeekStart+19)<>MONTH(LastMonth),\"\",LastMonth_WeekStart+19)","v":"2021-12-16"},{"$f":"IF(MONTH(LastMonth_WeekStart+20)<>MONTH(LastMonth),\"\",LastMonth_WeekStart+20)","v":"2021-12-17"},{"$f":"IF(MONTH(LastMonth_WeekStart+21)<>MONTH(LastMonth),\"\",LastMonth_WeekStart+21)","v":"2021-12-18"}]
[null,null,{"$f":"IF(MONTH(ThisMonth_WeekStart+29)<>MONTH(ThisMonth),\"\",ThisMonth_WeekStart+29)","v":"2022-01-23"},null,null,{"$f":"IF(MONTH(ThisMonth_WeekStart+30)<>MONTH(ThisMonth),\"\",ThisMonth_WeekStart+30)","v":"2022-01-24"},null,null,{"$f":"IF(MONTH(ThisMonth_WeekStart+31)<>MONTH(ThisMonth),\"\",ThisMonth_WeekStart+31)","v":"2022-01-25"},null,null,{"$f":"IF(MONTH(ThisMonth_WeekStart+32)<>MONTH(ThisMonth),\"\",ThisMonth_WeekStart+32)","v":"2022-01-26"},null,null,{"$f":"IF(MONTH(ThisMonth_WeekStart+33)<>MONTH(ThisMonth),\"\",ThisMonth_WeekStart+33)","v":"2022-01-27"},null,null,{"$f":"IF(MONTH(ThisMonth_WeekStart+34)<>MONTH(ThisMonth),\"\",ThisMonth_WeekStart+34)","v":"2022-01-28"},null,null,{"$f":"IF(MONTH(ThisMonth_WeekStart+35)<>MONTH(ThisMonth),\"\",ThisMonth_WeekStart+35)","v":"2022-01-29"},{"$nulls":3},{"$f":"IF(MONTH(LastMonth_WeekStart+22)<>MONTH(LastMonth),\"\",LastMonth_WeekStart+22)","v":"2021-12-19"},{"$f":"IF(MONTH(LastMonth_WeekStart+23)<>MONTH(LastMonth),\"\",LastMonth_WeekStart+23)","v":"2021-12-20"},{"$f":"IF(MONTH(LastMonth_WeekStart+24)<>MONTH(LastMonth),\"\",LastMonth_WeekStart+24)","v":"2021-12-21"},{"$f":"IF(MONTH(LastMonth_WeekStart+25)<>MONTH(LastMonth),\"\",LastMonth_WeekStart+25)","v":"2021-12-22"},{"$f":"IF(MONTH(LastMonth_WeekStart+26)<>MONTH(LastMonth),\"\",LastMonth_WeekStart+26)","v":"2021-12-23"},{"$f":"IF(MONTH(LastMonth_WeekStart+27)<>MONTH(LastMonth),\"\",LastMonth_WeekStart+27)","v":"2021-12-24"},{"$f":"IF(MONTH(LastMonth_WeekStart+28)<>MONTH(LastMonth),\"\",LastMonth_WeekStart+28)","v":"2021-12-25"}]
[{"$nulls":24},{"$f":"IF(MONTH(LastMonth_WeekStart+29)<>MONTH(LastMonth),\"\",LastMonth_WeekStart+29)","v":"2021-12-26"},{"$f":"IF(MONTH(LastMonth_WeekStart+30)<>MONTH(LastMonth),\"\",LastMonth_WeekStart+30)","v":"2021-12-27"},{"$f":"IF(MONTH(LastMonth_WeekStart+31)<>MONTH(LastMonth),\"\",LastMonth_WeekStart+31)","v":"2021-12-28"},{"$f":"IF(MONTH(LastMonth_WeekStart+32)<>MONTH(LastMonth),\"\",LastMonth_WeekStart+32)","v":"2021-12-29"},{"$f":"IF(MONTH(LastMonth_WeekStart+33)<>MONTH(LastMonth),\"\",LastMonth_WeekStart+33)","v":"2021-12-30"},{"$f":"IF(MONTH(LastMonth_WeekStart+34)<>MONTH(LastMonth),\"\",LastMonth_WeekStart+34)","v":"2021-12-31"},{"$f":"IF(MONTH(LastMonth_WeekStart+35)<>MONTH(LastMonth),\"\",LastMonth_WeekStart+35)","v":""}]
[{"$nulls":24},{"$f":"IF(MONTH(LastMonth_WeekStart+36)<>MONTH(LastMonth),\"\",LastMonth_WeekStart+36)","v":""},{"$f":"IF(MONTH(LastMonth_WeekStart+37)<>MONTH(LastMonth),\"\",LastMonth_WeekStart+37)","v":""},{"$f":"IF(MONTH(LastMonth_WeekStart+38)<>MONTH(LastMonth),\"\",LastMonth_WeekStart+38)","v":""},{"$f":"IF(MONTH(LastMonth_WeekStart+39)<>MONTH(LastMonth),\"\",LastMonth_WeekStart+39)","v":""},{"$f":"IF(MONTH(LastMonth_WeekStart+40)<>MONTH(LastMonth),\"\",LastMonth_WeekStart+40)","v":""},{"$f":"IF(MONTH(LastMonth_WeekStart+41)<>MONTH(LastMonth),\"\",LastMonth_WeekStart+41)","v":""},{"$f":"IF(MONTH(LastMonth_WeekStart+42)<>MONTH(LastMonth),\"\",LastMonth_WeekStart+42)","v":""}]
[]
[{"$nulls":24},{"$f":"EDATE(ThisMonth,1)","v":"2022-02-01"}]
[{"$nulls":24},"S","M","T","W","T","F","S"]
[null,null,{"$f":"IF(MONTH(ThisMonth_WeekStart+36)<>MONTH(ThisMonth),\"\",ThisMonth_WeekStart+36)","v":"2022-01-30"},null,null,{"$f":"IF(MONTH(ThisMonth_WeekStart+37)<>MONTH(ThisMonth),\"\",ThisMonth_WeekStart+37)","v":"2022-01-31"},null,null,{"$f":"IF(MONTH(ThisMonth_WeekStart+38)<>MONTH(ThisMonth),\"\",ThisMonth_WeekStart+38)","v":""},null,null,{"$f":"IF(MONTH(ThisMonth_WeekStart+39)<>MONTH(ThisMonth),\"\",ThisMonth_WeekStart+39)","v":""},null,null,{"$f":"IF(MONTH(ThisMonth_WeekStart+40)<>MONTH(ThisMonth),\"\",ThisMonth_WeekStart+40)","v":""},null,null,{"$f":"IF(MONTH(ThisMonth_WeekStart+41)<>MONTH(ThisMonth),\"\",ThisMonth_WeekStart+41)","v":""},null,null,{"$f":"IF(MONTH(ThisMonth_WeekStart+42)<>MONTH(ThisMonth),\"\",ThisMonth_WeekStart+42)","v":""},{"$nulls":3},{"$f":"IF(MONTH(NextMonth_WeekStart+1)<>MONTH(NextMonth),\"\",NextMonth_WeekStart+1)","v":""},{"$f":"IF(MONTH(NextMonth_WeekStart+2)<>MONTH(NextMonth),\"\",NextMonth_WeekStart+2)","v":""},{"$f":"IF(MONTH(NextMonth_WeekStart+3)<>MONTH(NextMonth),\"\",NextMonth_WeekStart+3)","v":"2022-02-01"},{"$f":"IF(MONTH(NextMonth_WeekStart+4)<>MONTH(NextMonth),\"\",NextMonth_WeekStart+4)","v":"2022-02-02"},{"$f":"IF(MONTH(NextMonth_WeekStart+5)<>MONTH(NextMonth),\"\",NextMonth_WeekStart+5)","v":"2022-02-03"},{"$f":"IF(MONTH(NextMonth_WeekStart+6)<>MONTH(NextMonth),\"\",NextMonth_WeekStart+6)","v":"2022-02-04"},{"$f":"IF(MONTH(NextMonth_WeekStart+7)<>MONTH(NextMonth),\"\",NextMonth_WeekStart+7)","v":"2022-02-05"}]
[{"$nulls":24},{"$f":"IF(MONTH(NextMonth_WeekStart+8)<>MONTH(NextMonth),\"\",NextMonth_WeekStart+8)","v":"2022-02-06"},{"$f":"IF(MONTH(NextMonth_WeekStart+9)<>MONTH(NextMonth),\"\",NextMonth_WeekStart+9)","v":"2022-02-07"},{"$f":"IF(MONTH(NextMonth_WeekStart+10)<>MONTH(NextMonth),\"\",NextMonth_WeekStart+10)","v":"2022-02-08"},{"$f":"IF(MONTH(NextMonth_WeekStart+11)<>MONTH(NextMonth),\"\",NextMonth_WeekStart+11)","v":"2022-02-09"},{"$f":"IF(MONTH(NextMonth_WeekStart+12)<>MONTH(NextMonth),\"\",NextMonth_WeekStart+12)","v":"2022-02-10"},{"$f":"IF(MONTH(NextMonth_WeekStart+13)<>MONTH(NextMonth),\"\",NextMonth_WeekStart+13)","v":"2022-02-11"},{"$f":"IF(MONTH(NextMonth_WeekStart+14)<>MONTH(NextMonth),\"\",NextMonth_WeekStart+14)","v":"2022-02-12"}]
[{"$nulls":24},{"$f":"IF(MONTH(NextMonth_WeekStart+15)<>MONTH(NextMonth),\"\",NextMonth_WeekStart+15)","v":"2022-02-13"},{"$f":"IF(MONTH(NextMonth_WeekStart+16)<>MONTH(NextMonth),\"\",NextMonth_WeekStart+16)","v":"2022-02-14"},{"$f":"IF(MONTH(NextMonth_WeekStart+17)<>MONTH(NextMonth),\"\",NextMonth_WeekStart+17)","v":"2022-02-15"},{"$f":"IF(MONTH(NextMonth_WeekStart+18)<>MONTH(NextMonth),\"\",NextMonth_WeekStart+18)","v":"2022-02-16"},{"$f":"IF(MONTH(NextMonth_WeekStart+19)<>MONTH(NextMonth),\"\",NextMonth_WeekStart+19)","v":"2022-02-17"},{"$f":"IF(MONTH(NextMonth_WeekStart+20)<>MONTH(NextMonth),\"\",NextMonth_WeekStart+20)","v":"2022-02-18"},{"$f":"IF(MONTH(NextMonth_WeekStart+21)<>MONTH(NextMonth),\"\",NextMonth_WeekStart+21)","v":"2022-02-19"}]
[{"$nulls":24},{"$f":"IF(MONTH(NextMonth_WeekStart+22)<>MONTH(NextMonth),\"\",NextMonth_WeekStart+22)","v":"2022-02-20"},{"$f":"IF(MONTH(NextMonth_WeekStart+23)<>MONTH(NextMonth),\"\",NextMonth_WeekStart+23)","v":"2022-02-21"},{"$f":"IF(MONTH(NextMonth_WeekStart+24)<>MONTH(NextMonth),\"\",NextMonth_WeekStart+24)","v":"2022-02-22"},{"$f":"IF(MONTH(NextMonth_WeekStart+25)<>MONTH(NextMonth),\"\",NextMonth_WeekStart+25)","v":"2022-02-23"},{"$f":"IF(MONTH(NextMonth_WeekStart+26)<>MONTH(NextMonth),\"\",NextMonth_WeekStart+26)","v":"2022-02-24"},{"$f":"IF(MONTH(NextMonth_WeekStart+27)<>MONTH(NextMonth),\"\",NextMonth_WeekStart+27)","v":"2022-02-25"},{"$f":"IF(MONTH(NextMonth_WeekStart+28)<>MONTH(NextMonth),\"\",NextMonth_WeekStart+28)","v":"2022-02-26"}]
[{"$nulls":24},{"$f":"IF(MONTH(NextMonth_WeekStart+29)<>MONTH(NextMonth),\"\",NextMonth_WeekStart+29)","v":"2022-02-27"},{"$f":"IF(MONTH(NextMonth_WeekStart+30)<>MONTH(NextMonth),\"\",NextMonth_WeekStart+30)","v":"2022-02-28"},{"$f":"IF(MONTH(NextMonth_WeekStart+31)<>MONTH(NextMonth),\"\",NextMonth_WeekStart+31)","v":""},{"$f":"IF(MONTH(NextMonth_WeekStart+32)<>MONTH(NextMonth),\"\",NextMonth_WeekStart+32)","v":""},{"$f":"IF(MONTH(NextMonth_WeekStart+33)<>MONTH(NextMonth),\"\",NextMonth_WeekStart+33)","v":""},{"$f":"IF(MONTH(NextMonth_WeekStart+34)<>MONTH(NextMonth),\"\",NextMonth_WeekStart+34)","v":""},{"$f":"IF(MONTH(NextMonth_WeekStart+35)<>MONTH(NextMonth),\"\",NextMonth_WeekStart+35)","v":""}]
[{"$nulls":24},{"$f":"IF(MONTH(NextMonth_WeekStart+36)<>MONTH(NextMonth),\"\",NextMonth_WeekStart+36)","v":""},{"$f":"IF(MONTH(NextMonth_WeekStart+37)<>MONTH(NextMonth),\"\",NextMonth_WeekStart+37)","v":""},{"$f":"IF(MONTH(NextMonth_WeekStart+38)<>MONTH(NextMonth),\"\",NextMonth_WeekStart+38)","v":""},{"$f":"IF(MONTH(NextMonth_WeekStart+39)<>MONTH(NextMonth),\"\",NextMonth_WeekStart+39)","v":""},{"$f":"IF(MONTH(NextMonth_WeekStart+40)<>MONTH(NextMonth),\"\",NextMonth_WeekStart+40)","v":""},{"$f":"IF(MONTH(NextMonth_WeekStart+41)<>MONTH(NextMonth),\"\",NextMonth_WeekStart+41)","v":""},{"$f":"IF(MONTH(NextMonth_WeekStart+42)<>MONTH(NextMonth),\"\",NextMonth_WeekStart+42)","v":""}]

{"sheet":"Lists","index":1,"n_rows":8,"n_cols":4,"rows_kept":8,"hidden":true}
[{"$f":"TEXT(EDATE($B$1,-2),\"mmmm yyyy\")","v":"September 2022"},{"$f":"TODAY()","v":"2022-11-11"},null,"Work"]
[{"$f":"TEXT(EDATE($B$1,-1),\"mmmm yyyy\")","v":"October 2022"},null,null,"Home"]
[{"$f":"TEXT(EDATE($B$1,0),\"mmmm yyyy\")","v":"November 2022"},null,null,"Birthday"]
[{"$f":"TEXT(EDATE($B$1,1),\"mmmm yyyy\")","v":"December 2022"},null,null,"Personal"]
[{"$f":"TEXT(EDATE($B$1,2),\"mmmm yyyy\")","v":"January 2023"},null,null,"Other"]
[{"$f":"TEXT(EDATE($B$1,3),\"mmmm yyyy\")","v":"February 2023"}]
[{"$f":"TEXT(EDATE($B$1,4),\"mmmm yyyy\")","v":"March 2023"}]
[{"$f":"TEXT(EDATE($B$1,5),\"mmmm yyyy\")","v":"April 2023"}]